bitfinex-derivatives/quotes_BTCF0:USTF0_20241210
["timestamp","ask_amount","ask_price","bid_price","bid_amount"]
[1733861190300,0.102,95800.0,95799.0,0.053174]
[1733861191092,0.106,95800.0,95799.0,0.053174]
[1733861192203,0.106,95800.0,95799.0,0.06217522]
[1733861192403,0.0415,95828.0,95799.0,0.06226313]
[1733861192607,0.052156,95832.0,95822.0,0.052161]
[1733861192807,0.052156,95832.0,95810.0,0.15713526]
[1733861192999,0.4022,95834.0,95826.0,0.052159]
[1733861193000,0.3608,95834.0,95826.0,0.052159]
[1733861193507,0.3608,95843.0,95836.0,0.052154]
[1733861194196,0.36236602,95837.0,95822.0,0.001]
[1733861194508,0.3608,95826.0,95822.0,0.053161]
[1733861194708,0.007,95827.0,95822.0,0.001]
[1733861194709,0.3678,95827.0,95822.0,0.001]
[1733861194901,0.3678,95827.0,95799.0,8.791e-05]
[1733861194902,0.052161,95823.0,95811.0,0.052167]
[1733861195205,0.052165,95815.0,95805.0,0.05217]
[1733861195408,0.052172,95803.0,95799.0,8.791e-05]
[1733861196003,0.052173,95800.0,95799.0,8.791e-05]
[1733861196212,0.412973,95800.0,95799.0,8.791e-05]
[1733861197106,0.3608,95800.0,95799.0,8.791e-05]
[1733861198313,0.3608,95800.0,95799.0,0.00308791]
[1733861198709,0.3608,95800.0,95799.0,8.791e-05]
[1733861198907,0.3618,95800.0,95799.0,0.00208791]
[1733861199304,0.3618,95800.0,95799.0,8.791e-05]
[1733861200099,0.3608,95800.0,95780.0,0.14528977]
[1733861200305,0.3608,95800.0,95780.0,0.01034313]
[1733861200503,0.3608,95800.0,95781.0,0.02104833]
[1733861200708,0.3608,95800.0,95787.0,0.05218]
[1733861200709,0.3608,95790.0,95787.0,0.05218]
[1733861200915,0.3608,95790.0,95788.0,0.052179]
[1733861201098,0.052178,95791.0,95781.0,0.02104833]
[1733861201099,0.052178,95791.0,95790.0,0.052179]
[1733861201302,0.0522631,95791.0,95790.0,0.052179]
[1733861201802,8.51e-05,95791.0,95790.0,0.052179]
[1733861202107,8.51e-05,95791.0,95790.0,0.412979]
[1733861202300,0.3608,95810.0,95790.0,0.412979]
[1733861202301,0.3608,95810.0,95809.0,0.052168]
[1733861202504,0.00156618,95820.0,95819.0,0.052163]
[1733861203411,0.09322773,95845.0,95832.0,0.052156]
[1733861203412,0.3608,95834.0,95832.0,0.052156]
[1733861204206,0.3608,95834.0,95820.0,0.14422476]
[1733861204406,0.3608,95834.0,95832.0,0.052155]
[1733861205406,0.3608,95834.0,95832.0,0.053155]
[1733861206006,0.3658,95834.0,95832.0,0.053155]
[1733861207615,0.3658,95834.0,95833.0,0.052155]
[1733861208416,0.005,95834.0,95833.0,0.052155]
[1733861208615,0.005,95834.0,95833.0,0.092455]
[1733861208916,0.3608,95843.0,95842.0,0.05215]
[1733861210411,0.3608,95854.0,95833.0,0.05165504]
[1733861210412,0.00156535,95860.0,95840.0,0.3608]
[1733861210614,0.00156535,95860.0,95859.0,0.052141]
[1733861212222,0.00156535,95860.0,95859.0,0.352141]
[1733861212513,0.455525,95889.0,95886.0,0.052126]
[1733861212514,0.50615273,95889.0,95886.0,0.052126]
[1733861212714,0.412925,95889.0,95886.0,0.052126]
[1733861212913,0.1,95900.0,95887.0,0.3608]
[1733861213112,0.00156492,95908.0,95896.0,0.052121]
[1733861213306,0.09322773,95921.0,95907.0,0.3608]
[1733861213509,0.09322773,95925.0,95923.0,0.052106]
[1733861213707,0.45402773,95932.0,95923.0,0.052106]
[1733861213910,0.3608,95932.0,95923.0,0.052106]
[1733861214221,0.45402773,95932.0,95925.0,0.052105]
[1733861214516,0.3608,95932.0,95925.0,0.052105]
[1733861214713,0.052103,95930.0,95924.0,0.09903]
[1733861214913,0.3608,95932.0,95915.0,0.3608]
[1733861215118,0.052107,95922.0,95915.0,0.3608]
[1733861215509,0.052109,95918.0,95915.0,0.3608]
[1733861216421,0.3608,95924.0,95915.0,0.3608]
[1733861216618,0.052108,95921.0,95915.0,0.3608]
[1733861216818,0.3608,95924.0,95916.0,0.05211]
[1733861217314,0.412906,95924.0,95916.0,0.05211]
[1733861217518,0.412906,95924.0,95915.0,0.3618]
[1733861217519,0.004,95918.0,95915.0,0.3618]
[1733861218242,0.052107,95922.0,95916.0,0.001]
[1733861218519,0.3648,95924.0,95917.0,0.052109]
[1733861219018,0.3608,95924.0,95917.0,0.052109]
[1733861219220,0.004,95918.0,95917.0,0.052109]
[1733861220217,0.004,95918.0,95915.0,0.3618]
[1733861220427,0.052111,95915.0,95914.0,0.02129944]
[1733861221219,0.3648,95924.0,95894.0,0.00156394]
[1733861221424,0.3608,95915.0,95894.0,0.00156394]
[1733861221623,0.3608,95915.0,95914.0,0.001]
[1733861221823,0.3608,95915.0,95909.0,0.02135157]
[1733861222024,0.3608,95915.0,95912.0,0.052112]
[1733861222025,0.3648,95915.0,95912.0,0.052112]
[1733861222229,0.3648,95915.0,95914.0,0.412911]
[1733861222230,0.004,95915.0,95914.0,0.412911]
[1733861224020,0.002,95915.0,95914.0,0.3618]
[1733861224219,0.002,95915.0,95914.0,0.42404551]
[1733861224931,0.052101,95934.0,95916.0,0.05211]
[1733861225229,0.3608,95926.0,95914.0,0.37273451]
[1733861225527,0.412905,95926.0,95914.0,0.37193451]
[1733861225924,0.052108,95920.0,95914.0,0.37193451]
[1733861226123,0.052108,95920.0,95909.0,0.02135157]
[1733861226124,0.3608,95917.0,95909.0,0.02135157]
[1733861226324,0.052113,95912.0,95909.0,0.02135157]
[1733861226529,0.3608,95917.0,95905.0,7.614e-05]
[1733861226718,0.3608,95908.0,95905.0,7.614e-05]
[1733861226919,0.052115,95907.0,95905.0,7.614e-05]
[1733861228136,0.3608,95908.0,95906.0,0.052116]
[1733861228529,0.095206,95925.0,95905.0,7.614e-05]
[1733861228827,0.3608,95928.0,95910.0,0.15680338]
[1733861229031,0.3608,95928.0,95923.0,0.052106]
[1733861229331,0.3608,95928.0,95926.0,0.052104]
[1733861229524,0.3608,95928.0,95912.0,0.3608]
[1733861230020,0.052105,95927.0,95921.0,0.052107]
[1733861230221,0.3608,95928.0,95906.0,0.02064568]
[1733861230222,0.05211,95917.0,95906.0,0.02064568]
[1733861230434,0.05211,95917.0,95911.0,0.052113]
[1733861231125,0.05211,95917.0,95912.0,0.052112]
[1733861231327,0.05211,95916.0,95912.0,0.052112]
[1733861231530,0.05211,95916.0,95906.0,0.02064568]
[1733861231531,0.3608,95919.0,95906.0,0.02064568]
[1733861231728,0.0407,95918.0,95906.0,0.02064568]
[1733861232030,0.001,95928.0,95927.0,0.052104]
[1733861232328,0.09322773,95956.0,95930.0,0.052103]
[1733861232628,0.1242599,95961.0,95957.0,0.052088]
[1733861232831,0.3608,95962.0,95950.0,0.1939761]
[1733861233023,0.3608,95962.0,95955.0,0.052089]
[1733861233335,0.3608,95962.0,95950.0,0.1939761]
[1733861233336,0.3608,95962.0,95960.0,0.052086]
[1733861234132,0.3668,95962.0,95960.0,0.052086]
[1733861234630,0.052086,95961.0,95956.0,0.052088]
[1733861234822,0.052086,95961.0,95957.0,0.052088]
[1733861235021,0.052086,95961.0,95959.0,0.052087]
[1733861235832,0.052086,95961.0,95960.0,0.001]
[1733861236137,0.052086,95961.0,95960.0,0.002]
[1733861236343,0.052086,95961.0,95960.0,0.001]
[1733861236626,0.052086,95961.0,95959.0,0.001]
[1733861236840,0.056086,95961.0,95922.0,0.4047]
[1733861237023,0.056086,95961.0,95942.0,0.052096]
[1733861237024,0.3608,95943.0,95942.0,0.052096]
[1733861237420,0.09681054,95961.0,95952.0,0.05209]
[1733861237421,0.05209,95953.0,95952.0,0.05209]
[1733861238028,0.3608,95954.0,95952.0,0.05209]
[1733861238442,0.3608,95954.0,95947.0,0.052093]
[1733861238735,0.052093,95948.0,95946.0,0.052094]
[1733861239323,0.052093,95948.0,95947.0,0.09901]
[1733861239522,0.052093,95948.0,95947.0,0.10001]
[1733861240233,0.056093,95948.0,95947.0,0.10001]
[1733861240630,0.056093,95948.0,95947.0,0.09901]
[1733861241029,0.052093,95948.0,95947.0,0.09901]
[1733861241232,0.057093,95948.0,95947.0,0.09901]
[1733861242236,0.057093,95948.0,95947.0,0.10001]
[1733861242929,0.057093,95948.0,95947.0,0.152103]
[1733861243829,0.057093,95948.0,95947.0,0.10001]
[1733861244336,0.417893,95948.0,95947.0,0.10001]
[1733861244536,0.4685569,95948.0,95934.0,0.02105305]
[1733861244739,0.14543918,95936.0,95935.0,0.0521]
[1733861245033,0.0521,95936.0,95935.0,0.0521]
[1733861246530,0.12445224,95940.0,95939.0,0.052098]
[1733861246742,0.09334197,95941.0,95936.0,0.052099]
[1733861246939,0.3608,95948.0,95943.0,0.052096]
[1733861246940,0.09334197,95944.0,95943.0,0.052096]
[1733861247138,0.09334197,95948.0,95947.0,0.052093]
[1733861247435,0.09334197,95956.0,95949.0,0.052092]
[1733861247638,0.09334197,95957.0,95956.0,0.052088]
[1733861247833,0.09334197,95959.0,95958.0,0.052087]
[1733861248429,0.3608,95960.0,95959.0,0.052087]
[1733861248846,0.3608,95960.0,95956.0,0.3608]
[1733861248847,0.09329407,95960.0,95956.0,0.3608]
[1733861249028,0.00156369,95966.0,95965.0,0.052084]
[1733861249347,0.09329407,95978.0,95965.0,0.3608]
[1733861249643,0.5474703,95994.0,95985.0,0.052073]
[1733861249644,0.09329407,95986.0,95985.0,0.052073]
[1733861249938,0.09329407,95986.0,95970.0,0.15680338]
[1733861249939,0.12446318,95991.0,95971.0,0.0437]
[1733861250136,0.3608,95994.0,95980.0,0.15680338]
[1733861250137,0.09323711,95986.0,95980.0,0.15680338]
[1733861250331,0.09318124,95988.0,95980.0,0.15680338]
[1733861250538,0.0931815,95988.0,95987.0,0.052072]
[1733861250735,0.0931815,95992.0,95991.0,0.05207]
[1733861250941,0.1555653,96005.0,95980.0,0.15680338]
[1733861250942,0.12446318,95996.0,95980.0,0.15680338]
[1733861251234,0.01247947,96007.0,95971.0,0.0437]
[1733861251235,0.3608,95981.0,95971.0,0.0437]
[1733861251435,0.052077,95978.0,95975.0,0.052078]
[1733861251630,0.052079,95974.0,95967.0,0.052082]
[1733861251838,0.052078,95976.0,95960.0,0.00156272]
[1733861252042,0.052078,95976.0,95971.0,0.05208]
[1733861252541,0.052078,95976.0,95965.0,0.01248474]
[1733861252734,0.052078,95976.0,95968.0,0.052082]
[1733861252931,0.052078,95976.0,95972.0,0.052079]
[1733861253131,0.052078,95976.0,95975.0,0.002]
[1733861253537,0.052078,95976.0,95975.0,0.054078]
[1733861255132,0.09317675,95980.0,95975.0,0.002]
[1733861255331,0.50605175,95981.0,95979.0,0.052076]
[1733861255640,0.45397675,95981.0,95979.0,0.052076]
[1733861255936,0.14525175,95980.0,95979.0,0.052076]
[1733861256145,0.052075,95980.0,95979.0,0.052076]
[1733861256338,0.14519099,95980.0,95979.0,0.052076]
[1733861256840,0.052075,95980.0,95979.0,0.053076]
[1733861257031,0.14520498,95980.0,95979.0,0.053076]
[1733861257235,0.3608,95981.0,95971.0,0.02052003]
[1733861257429,0.3608,95972.0,95965.0,0.01248474]
[1733861257637,0.052083,95966.0,95965.0,0.05219439]
[1733861258932,0.3608,95970.0,95965.0,0.05219439]
[1733861258933,0.45393138,95970.0,95965.0,0.00011139]
[1733861259132,0.36144,95972.0,95965.0,0.00011139]
[1733861259133,0.3608,95972.0,95971.0,0.05208]
[1733861259335,0.3608,95989.0,95965.0,0.02332744]
[1733861259336,0.09313138,95986.0,95985.0,0.052073]
[1733861259539,0.09313138,95988.0,95987.0,0.052072]
[1733861259736,0.45457294,95989.0,95988.0,0.052071]
[1733861259934,0.45401137,95989.0,95988.0,0.052071]
[1733861260137,0.09321108,95994.0,95988.0,0.052071]
[1733861260335,0.14527508,96001.0,95999.0,0.052065]
[1733861260543,0.09321108,96001.0,95979.0,0.15680338]
[1733861260743,0.3608,95987.0,95986.0,0.052072]
[1733861261950,0.3608,95987.0,95986.0,0.06462937]
[1733861262251,0.45401108,95995.0,95986.0,0.06462937]
[1733861262252,0.09321108,95993.0,95986.0,0.42542937]
[1733861262437,0.09321108,96003.0,95994.0,0.052068]
[1733861262637,0.09320373,96020.0,95995.0,0.4034]
[1733861262945,0.09320373,96025.0,96007.0,0.15680338]
[1733861263148,0.09320373,96025.0,96023.0,0.052052]
[1733861263344,0.3608,96029.0,96010.0,0.052059]
[1733861263539,0.3608,96027.0,96023.0,0.052052]
[1733861263842,0.09320373,96031.0,96023.0,0.052052]
[1733861263843,0.41285,96028.0,96023.0,0.052052]
[1733861264044,0.3608,96028.0,96025.0,0.052051]
[1733861264245,0.09320373,96030.0,96025.0,0.052051]
[1733861264549,0.3608,96034.0,96010.0,0.01255358]
[1733861264550,0.3608,96026.0,96010.0,0.01255358]
[1733861264736,0.3608,96026.0,96017.0,0.052055]
[1733861264943,0.052052,96024.0,96017.0,0.052055]
[1733861265742,0.3608,96026.0,96011.0,0.052059]
[1733861265945,0.3608,96026.0,96008.0,0.05303903]
[1733861266251,0.052055,96018.0,96017.0,0.001]
[1733861266447,0.412855,96018.0,96017.0,0.001]
[1733861267942,0.052058,96012.0,96011.0,0.001]
[1733861268745,0.052058,96012.0,96010.0,0.02131992]
[1733861269351,0.052058,96012.0,96011.0,0.001]
[1733861269554,0.057058,96012.0,96011.0,0.001]
[1733861271553,0.057058,96012.0,96010.0,0.02231992]
[1733861271748,0.052058,96012.0,96010.0,0.02231992]
[1733861271950,0.057058,96012.0,96010.0,0.02131992]
[1733861272142,0.057058,96012.0,96011.0,0.001]
[1733861272544,0.057058,96012.0,96010.0,0.02131992]
[1733861272545,0.052058,96012.0,96010.0,0.02131992]
[1733861272746,0.057058,96012.0,96010.0,0.02231992]
[1733861273156,0.057058,96012.0,96010.0,0.02131992]
[1733861273452,0.057058,96012.0,96011.0,0.001]
[1733861273759,0.057058,96012.0,96011.0,0.053059]
[1733861273945,0.057058,96012.0,96011.0,0.001]
[1733861275246,0.005,96012.0,96010.0,0.07437892]
[1733861275648,0.005,96012.0,96010.0,0.07337892]
[1733861275948,0.005,96012.0,96011.0,0.001]
[1733861276449,0.005,96012.0,96010.0,0.08603809]
[1733861276649,0.057058,96012.0,96010.0,0.08703809]
[1733861277949,0.057058,96012.0,96011.0,0.052059]
[1733861278265,0.057058,96012.0,96011.0,0.053059]
[1733861278644,0.057058,96012.0,96011.0,0.052059]
[1733861279053,0.052058,96012.0,96011.0,0.052059]
[1733861279253,0.057058,96012.0,96011.0,0.052059]
[1733861279556,0.057058,96012.0,96011.0,0.053059]
[1733861280351,0.057058,96012.0,96011.0,0.001]
[1733861281257,0.057058,96012.0,96011.0,0.053059]
[1733861281258,0.005,96012.0,96011.0,0.053059]
[1733861281455,0.005,96012.0,96011.0,0.081579]
[1733861281960,0.005,96012.0,96011.0,0.12713918]
[1733861282158,0.18587021,96037.0,96011.0,0.07508018]
[1733861282360,0.3608,96038.0,96037.0,0.052045]
[1733861282856,0.09322521,96051.0,96039.0,0.052043]
[1733861283059,0.09322521,96051.0,96050.0,0.052038]
[1733861283261,0.09322521,96053.0,96040.0,0.10413388]
[1733861283456,0.09322521,96053.0,96052.0,0.052036]
[1733861283457,0.09315834,96053.0,96052.0,0.052036]
[1733861283851,0.3608,96057.0,96040.0,0.10413388]
[1733861284053,0.3608,96057.0,96056.0,0.052034]
[1733861284958,0.3608,96057.0,96047.0,0.46493388]
[1733861285157,0.3608,96057.0,96056.0,0.001]
[1733861286464,0.3608,96057.0,96040.0,0.01251592]
[1733861286465,0.05204,96045.0,96042.0,0.052042]
[1733861286660,0.3608,96057.0,96017.0,0.18881515]
[1733861286661,0.3608,96044.0,96033.0,0.052046]
[1733861286865,0.412846,96035.0,96033.0,0.052046]
[1733861287356,0.3608,96035.0,96034.0,0.01270746]
[1733861287562,0.3608,96035.0,96034.0,8.406e-05]
[1733861288159,0.0877,96043.0,96034.0,8.406e-05]
[1733861288160,0.0444,96043.0,96041.0,0.052042]
[1733861288361,0.3608,96044.0,96043.0,0.052041]
[1733861288566,0.3628,96044.0,96043.0,0.052041]
[1733861289261,0.3608,96044.0,96043.0,0.052041]
[1733861289462,0.3608,96047.0,96043.0,0.001]
[1733861289655,0.14519534,96051.0,96048.0,0.052038]
[1733861289856,0.09315834,96050.0,96043.0,0.001]
[1733861290053,0.09315834,96047.0,96043.0,0.001]
[1733861290252,0.052046,96035.0,96034.0,8.406e-05]
[1733861290455,0.3608,96035.0,96034.0,8.406e-05]
[1733861290665,0.09318894,96039.0,96037.0,0.052044]
[1733861290966,0.052042,96041.0,96039.0,0.052043]
[1733861291168,0.052043,96040.0,96036.0,0.052045]
[1733861292061,0.12446318,96042.0,96039.0,0.001]
[1733861292261,0.09322584,96042.0,96039.0,0.001]
[1733861292455,0.41340101,96044.0,96041.0,0.052042]
[1733861292761,0.09322805,96043.0,96041.0,0.052042]
[1733861292954,0.09322805,96042.0,96041.0,0.052042]
[1733861293468,0.002,96042.0,96041.0,0.052042]
[1733861294660,0.002,96042.0,96041.0,0.053042]
[1733861295161,0.45462806,96044.0,96041.0,0.053042]
[1733861295162,0.36140001,96044.0,96041.0,0.053042]
[1733861295361,0.36140001,96044.0,96043.0,0.052041]
[1733861295362,0.3608,96044.0,96043.0,0.052041]
[1733861296357,0.3628,96044.0,96043.0,0.052041]
[1733861297365,0.002,96044.0,96043.0,0.052041]
[1733861297668,0.002,96044.0,96043.0,0.06444152]
[1733861297870,0.002,96044.0,96043.0,0.06544152]
[1733861298169,0.3608,96051.0,96050.0,0.052038]
[1733861299375,0.3628,96051.0,96050.0,0.052038]
[1733861299574,0.3628,96051.0,96050.0,0.053038]
[1733861299758,0.3628,96051.0,96050.0,0.001]
[1733861299961,0.414837,96051.0,96050.0,0.001]
[1733861300164,0.3628,96051.0,96043.0,0.052041]
[1733861300367,0.14522521,96046.0,96043.0,0.052041]
[1733861300675,0.052041,96044.0,96043.0,0.052041]
[1733861300967,0.052041,96044.0,96034.0,0.01299822]
[1733861300968,0.0868,96045.0,96034.0,8.406e-05]
[1733861301178,0.412846,96035.0,96034.0,8.406e-05]
[1733861301365,0.412846,96035.0,96034.0,0.05213006]
[1733861301964,0.45401671,96035.0,96034.0,0.05213006]
[1733861302266,0.412846,96035.0,96034.0,0.05313006]
[1733861302665,0.412846,96035.0,96034.0,0.05213006]
[1733861302862,0.414846,96035.0,96034.0,0.05313006]
[1733861304175,0.414846,96035.0,96034.0,0.00108406]
[1733861304474,0.414846,96035.0,96034.0,0.05313006]
[1733861305060,0.3628,96035.0,96034.0,0.05313006]
[1733861305972,0.002,96035.0,96034.0,0.05313006]
[1733861306964,0.002,96035.0,96034.0,0.24038314]
[1733861307184,0.3608,96049.0,96048.0,0.052039]
[1733861307971,0.3608,96049.0,96041.0,0.23842722]
[1733861307972,0.00156209,96063.0,96045.0,0.18638522]
[1733861308171,0.3608,96059.0,96051.0,0.052037]
[1733861308368,0.3608,96059.0,96058.0,0.052033]
[1733861308568,0.412833,96059.0,96058.0,0.052033]
[1733861308768,0.412833,96059.0,96048.0,0.001]
[1733861308769,0.3608,96059.0,96048.0,0.001]
[1733861309074,0.052035,96054.0,96053.0,0.052036]
[1733861309275,0.09334706,96057.0,96048.0,0.001]
[1733861309569,0.3608,96059.0,96048.0,0.0653296]
[1733861309570,0.3608,96049.0,96048.0,0.0653296]
[1733861309766,0.3608,96049.0,96048.0,0.125919]
[1733861310468,0.3608,96049.0,96048.0,0.124919]
[1733861311168,0.413838,96049.0,96048.0,0.125919]
[1733861311468,0.3618,96049.0,96048.0,0.125919]
[1733861311668,0.3618,96049.0,96048.0,0.07388]
[1733861311871,0.052043,96039.0,96038.0,0.00156167]
[1733861312169,0.3608,96039.0,96032.0,0.0008]
[1733861312363,0.094044,96038.0,96037.0,0.052045]
[1733861313272,0.094044,96038.0,96037.0,0.02876]
[1733861313766,0.14466517,96038.0,96037.0,0.02876]
[1733861313972,0.14466517,96038.0,96019.0,0.18638522]
[1733861313973,0.052046,96035.0,96019.0,0.18638522]
[1733861314274,0.052055,96018.0,96017.0,0.00156198]
[1733861315270,0.05214187,96018.0,96017.0,0.00156198]
[1733861315464,0.20776211,96018.0,96017.0,0.00456198]
[1733861315673,0.05214187,96018.0,96017.0,0.00556198]
[1733861315866,0.052062,96006.0,96003.0,0.0640235]
[1733861316167,0.7216,96004.0,96003.0,0.0640235]
[1733861316876,0.3608,96011.0,96010.0,0.052059]
[1733861317070,0.3608,96011.0,96003.0,0.0119605]
[1733861317271,0.052063,96003.0,95995.0,0.052067]
[1733861317578,0.3608,95996.0,95995.0,0.052067]
[1733861318572,0.3608,95996.0,95995.0,0.054067]
[1733861319077,0.3608,95996.0,95995.0,0.053067]
[1733861319273,0.3608,95996.0,95995.0,0.055067]
[1733861320176,0.3608,95996.0,95995.0,0.054067]
[1733861320367,0.3608,95996.0,95995.0,0.055067]
[1733861322579,0.3608,96005.0,95995.0,0.056067]
[1733861322972,0.3608,96016.0,95995.0,0.304]
[1733861323290,0.12449681,96027.0,95995.0,0.304]
[1733861323291,0.12449681,96057.0,96018.0,0.052055]
[1733861323486,0.0441,96060.0,96043.0,0.3608]
[1733861323780,0.0441,96060.0,96055.0,0.3608]
[1733861323977,0.052037,96051.0,96043.0,0.3608]
[1733861324380,0.05198393,96051.0,96043.0,0.3608]
[1733861324676,0.05198393,96051.0,96043.0,0.3618]
[1733861325073,0.05198393,96051.0,96043.0,0.3608]
[1733861325285,0.05698393,96051.0,96043.0,0.3618]
[1733861325683,0.05798393,96051.0,96043.0,0.3618]
[1733861326380,0.05798393,96051.0,96043.0,0.413841]
[1733861327584,0.05798393,96051.0,96044.0,0.02602]
[1733861328379,0.05798393,96051.0,96046.0,0.052039]
[1733861328981,0.05698393,96051.0,96046.0,0.052039]
[1733861329186,0.05798393,96051.0,96044.0,0.02702]
[1733861329387,0.05798393,96051.0,96047.0,0.052039]
[1733861330281,0.05798393,96051.0,96044.0,0.02702]
[1733861330282,0.006,96051.0,96044.0,0.02702]
[1733861330485,0.006,96051.0,96050.0,0.052038]
[1733861331779,0.006,96051.0,96050.0,0.053038]
[1733861334887,0.006,96051.0,96050.0,0.06515385]
[1733861337896,0.3608,96072.0,96050.0,0.01311585]
[1733861338082,0.3608,96072.0,96063.0,0.05203]
[1733861338583,0.052027,96070.0,96065.0,0.052029]
[1733861340995,0.001,96072.0,96061.0,0.3608]
[1733861341187,0.052028,96068.0,96065.0,0.053029]
[1733861342192,0.052028,96068.0,96065.0,0.054029]
[1733861342491,0.052028,96067.0,96065.0,0.002]
[1733861343091,0.052028,96067.0,96065.0,0.001]
[1733861343799,0.3608,96066.0,96061.0,0.001]
[1733861343996,0.052037,96051.0,96050.0,0.052037]
[1733861344188,0.3608,96066.0,96045.0,0.36236169]
[1733861344389,0.3608,96066.0,96054.0,0.3608]
[1733861344584,0.3608,96066.0,96065.0,0.001]
[1733861344998,0.052028,96067.0,96065.0,0.001]
[1733861345496,0.052032,96060.0,96059.0,0.052032]
[1733861346197,0.052028,96068.0,96065.0,0.053029]
[1733861346403,0.3608,96075.0,96068.0,0.052028]
[1733861346594,0.052027,96070.0,96068.0,0.052028]
[1733861346798,0.052029,96066.0,96065.0,0.001]
[1733861347396,0.052029,96066.0,96065.0,0.002]
[1733861347801,0.052029,96066.0,96065.0,0.001]
[1733861348008,0.052029,96066.0,96065.0,0.002]
[1733861348298,0.052027,96070.0,96069.0,0.052027]
[1733861348492,0.0863,96079.0,96069.0,0.052027]
[1733861348493,0.1240172,96089.0,96075.0,0.052024]
[1733861348693,0.052015,96091.0,96090.0,0.052015]
[1733861349293,0.3608,96093.0,96083.0,0.05202]
[1733861349491,0.052019,96084.0,96083.0,0.05202]
[1733861349690,0.052021,96080.0,96079.0,0.3608]
[1733861349887,0.052021,96080.0,96079.0,0.412822]
[1733861350088,0.052021,96080.0,96069.0,0.053027]
[1733861350290,0.052027,96070.0,96069.0,0.052027]
[1733861350601,0.052027,96069.0,96068.0,0.412828]
[1733861351988,0.052027,96069.0,96068.0,0.3608]
[1733861352194,0.3608,96076.0,96064.0,0.06035]
[1733861352401,0.052029,96065.0,96064.0,0.00832]
[1733861352889,0.10263718,96065.0,96064.0,0.00832]
[1733861353088,0.14763718,96065.0,96064.0,0.01664]
[1733861353290,0.052032,96060.0,96059.0,0.00011518]
[1733861353497,0.05204,96045.0,96036.0,0.052045]
[1733861353690,0.05204,96045.0,96044.0,0.02602]
[1733861354302,0.10265778,96045.0,96044.0,0.02602]
[1733861354504,0.05211677,96045.0,96044.0,0.02602]
[1733861354694,0.10273628,96045.0,96044.0,0.02602]
[1733861355394,0.10373628,96045.0,96044.0,0.02602]
[1733861355598,0.052041,96043.0,96042.0,0.00832]
[1733861355793,0.2076709,96043.0,96042.0,0.00832]
[1733861356391,0.052041,96043.0,96042.0,0.00832]
[1733861357103,0.052041,96043.0,96042.0,0.00932]
[1733861357998,0.053041,96043.0,96042.0,0.00932]
[1733861358595,0.053041,96043.0,96042.0,0.00832]
[1733861358790,0.053041,96043.0,96042.0,0.01973]
[1733861362701,0.053041,96043.0,96042.0,0.01873]
[1733861362999,0.17734742,96043.0,96042.0,0.01973]
[1733861363204,0.053041,96043.0,96042.0,0.01973]
[1733861364004,0.052041,96043.0,96042.0,0.01973]
[1733861364299,0.053041,96043.0,96042.0,0.071772]
[1733861364506,0.001,96043.0,96042.0,0.071772]
[1733861364696,0.001,96043.0,96042.0,0.165072]
[1733861365405,0.001,96043.0,96042.0,0.164072]
[1733861365599,0.001,96043.0,96042.0,0.11203]
[1733861365800,0.001,96043.0,96042.0,0.164072]
[1733861367109,7.677e-05,96045.0,96044.0,0.052041]
[1733861370905,0.05211677,96045.0,96044.0,0.052041]
[1733861373015,0.05211677,96045.0,96043.0,0.00832]
[1733861373016,0.052041,96044.0,96043.0,0.00832]
[1733861374611,0.06370148,96044.0,96043.0,0.00832]
[1733861375414,0.052041,96044.0,96043.0,0.00832]
[1733861376409,0.052041,96044.0,96043.0,0.060361]
[1733861376717,7.677e-05,96045.0,96044.0,0.052041]
[1733861377308,0.05211677,96045.0,96044.0,0.052041]
[1733861378505,7.677e-05,96045.0,96044.0,0.052041]
[1733861378706,7.677e-05,96045.0,96044.0,0.097541]
[1733861380114,7.677e-05,96045.0,96044.0,0.28297184]
[1733861380316,7.677e-05,96045.0,96044.0,0.097541]
[1733861380616,7.677e-05,96045.0,96044.0,0.28391926]
[1733861380816,7.677e-05,96045.0,96044.0,0.097541]
[1733861382507,7.677e-05,96045.0,96044.0,0.70558212]
[1733861382714,7.677e-05,96045.0,96044.0,0.458341]
[1733861383016,0.052027,96070.0,96069.0,0.052027]
[1733861384716,0.052027,96070.0,96069.0,0.053027]
[1733861388919,0.12430642,96077.0,96076.0,0.052023]
[1733861389116,0.1244156,96082.0,96077.0,0.052023]
[1733861389315,0.1244156,96087.0,96078.0,0.0475]
[1733861389522,0.1244156,96090.0,96089.0,0.052016]
[1733861389718,0.12438318,96090.0,96089.0,0.052016]
[1733861389919,0.052013,96096.0,96086.0,0.3608]
[1733861389920,0.12438318,96094.0,96090.0,0.052016]
[1733861390115,0.12438318,96094.0,96086.0,0.3608]
[1733861390116,0.48518318,96098.0,96091.0,0.052015]
[1733861390318,0.3608,96098.0,96091.0,0.052015]
[1733861390718,0.052013,96096.0,96091.0,0.052015]
[1733861391317,0.01162533,96104.0,96091.0,0.052015]
[1733861391625,0.12438318,96111.0,96091.0,0.053015]
[1733861391820,0.052009,96103.0,96091.0,0.053015]
[1733861392519,0.052007,96106.0,96091.0,0.053015]
[1733861393122,0.052007,96106.0,96091.0,0.125855]
[1733861393727,0.052007,96106.0,96091.0,0.171555]
[1733861394030,0.0438,96111.0,96091.0,0.171555]
[1733861394419,0.048,96099.0,96091.0,0.125855]
[1733861394620,0.048,96099.0,96091.0,0.124855]
[1733861394621,0.052013,96097.0,96091.0,0.124855]
[1733861394820,0.048,96099.0,96091.0,0.125855]
[1733861395319,0.052013,96095.0,96091.0,0.125855]
[1733861395727,0.048,96099.0,96091.0,0.125855]
[1733861395923,0.052009,96102.0,96091.0,0.125855]
[1733861396529,0.0912,96110.0,96091.0,0.125855]
[1733861396530,0.152011,96100.0,96091.0,0.125855]
[1733861396727,0.1,96100.0,96099.0,0.052011]